fUSD/lending_fUSD_20260605
["ID","MTS","AMOUNT","RATE_DAILY","PERIOD"]
[424137743,1780607492000,-500.0,0.00038027,11]
[424137744,1780607492000,-282.42675369,0.00038027,11]
[424137746,1780607492000,-500.0,0.00038027,11]
[424137747,1780607492000,-696.57,0.00038027,11]
[424137749,1780607492000,-500.0,0.00038027,11]
[424137750,1780607492000,-8231.59,0.00038027,11]
[424137748,1780607492000,-1070.68,0.00038027,11]
[424137753,1780607492000,-7481.71,0.00038027,11]
[424137755,1780607492000,-500.0,0.00038027,11]
[424137754,1780607492000,-2885.57,0.00038027,11]
[424137756,1780607492000,-254.22891872,0.00038027,11]
[424137693,1780607492000,-500.0,0.00038027,11]
[424137723,1780607492000,-500.0,0.00038027,11]
[424137727,1780607492000,-500.0,0.00038027,11]
[424137751,1780607492000,-500.0,0.00038027,11]
[424137725,1780607492000,-2494.03,0.00038027,11]
[424137697,1780607492000,-7062.86,0.00038027,11]
[424137719,1780607492000,-592.72,0.00038027,11]
[424137701,1780607492000,-4258.06,0.00038027,11]
[424137703,1780607492000,-4051.49,0.00038027,11]
[424137699,1780607492000,-4748.28,0.00038027,11]
[424137698,1780607492000,-1659.94,0.00038027,11]
[424137700,1780607492000,-500.0,0.00038027,11]
[424137702,1780607492000,-3279.15,0.00038027,11]
[424137705,1780607492000,-500.0,0.00038027,11]
[424137714,1780607492000,-500.0,0.00038027,11]
[424137715,1780607492000,-245.00555189,0.00038027,11]
[424137711,1780607492000,-568.57600509,0.00038027,11]
[424137707,1780607492000,-500.0,0.00038027,11]
[424137712,1780607492000,-500.0,0.00038027,11]
[424137706,1780607492000,-42026.07,0.00038027,11]
[424137721,1780607492000,-500.0,0.00038027,11]
[424137722,1780607492000,-500.0,0.00038027,11]
[424137716,1780607492000,-710.84,0.00038027,11]
[424137726,1780607492000,-2613.9,0.00038027,11]
[424137724,1780607492000,-500.0,0.00038027,11]
[424137720,1780607492000,-500.0,0.00038027,11]
[424137718,1780607492000,-60421.87,0.00038027,11]
[424137717,1780607492000,-878.15,0.00038027,11]
[424137709,1780607492000,-2213.59,0.00038027,11]
[424137710,1780607492000,-1136.96,0.00038027,11]
[424137713,1780607492000,-6291.69,0.00038027,11]
[424137708,1780607492000,-500.0,0.00038027,11]
[424137728,1780607492000,-500.0,0.00038027,11]
[424137797,1780607493000,-5003.27,0.00038027,11]
[424137800,1780607493000,-500.0,0.00038027,11]
[424137794,1780607493000,-3072.47,0.00038027,11]
[424137798,1780607493000,-4478.44,0.00038027,11]
[424137796,1780607493000,-500.0,0.00038027,11]
[424137791,1780607493000,-2636.65,0.00038027,11]
[424137792,1780607493000,-3000.27,0.00038027,11]
[424137802,1780607493000,-500.0,0.00038027,11]
[424137793,1780607493000,-500.0,0.00038027,11]
[424137789,1780607493000,-41097.1,0.00038027,11]
[424137795,1780607493000,-4385.53,0.00038027,11]
[424137801,1780607493000,-578.29,0.00038027,11]
[424137799,1780607493000,-1928.99,0.00038027,11]
[424137826,1780607493000,-500.0,0.00038027,11]
[424137805,1780607493000,-7726.77,0.00038027,11]
[424137804,1780607493000,-500.0,0.00038027,11]
[424137806,1780607493000,-500.0,0.00038027,11]
[424137809,1780607493000,-3691.76,0.00038027,11]
[424137811,1780607493000,-500.0,0.00038027,11]
[424137813,1780607493000,-500.0,0.00038027,11]
[424137807,1780607493000,-500.0,0.00038027,11]
[424137808,1780607493000,-876.27,0.00038027,11]
[424137814,1780607493000,-674.62,0.00038027,11]
[424137812,1780607493000,-500.0,0.00038027,11]
[424137810,1780607493000,-500.0,0.00038027,11]
[424137816,1780607493000,-3569.41,0.00038027,11]
[424137784,1780607493000,-500.0,0.00038027,11]
[424137803,1780607493000,-500.0,0.00038027,11]
[424137790,1780607493000,-500.0,0.00038027,11]
[424137763,1780607493000,-500.0,0.00038027,11]
[424137783,1780607493000,-500.0,0.00038027,11]
[424137764,1780607493000,-7462.52,0.00038027,11]
[424137827,1780607493000,-9429.18,0.00038027,11]
[424137765,1780607493000,-3854.17,0.00038027,11]
[424137759,1780607493000,-500.0,0.00038027,11]
[424137758,1780607493000,-500.0,0.00038027,11]
[424137761,1780607493000,-500.0,0.00038027,11]
[424137762,1780607493000,-3491.73,0.00038027,11]
[424137760,1780607493000,-3629.92,0.00038027,11]
[424137767,1780607493000,-3702.47,0.00038027,11]
[424137776,1780607493000,-4447.46,0.00038027,7]
[424137775,1780607493000,-6161.84,0.00038027,11]
[424137766,1780607493000,-500.0,0.00038027,11]
[424137771,1780607493000,-500.0,0.00038027,11]
[424137785,1780607493000,-2625.55,0.00038027,11]
[424137777,1780607493000,-500.0,0.00038027,11]
[424137778,1780607493000,-500.0,0.00038027,11]
[424137770,1780607493000,-683.5,0.00038027,11]
[424137769,1780607493000,-500.0,0.00038027,11]
[424137774,1780607493000,-28929.84,0.00038027,11]
[424137773,1780607493000,-646.46686461,0.00038027,11]
[424137772,1780607493000,-500.0,0.00038027,11]
[424137779,1780607493000,-2404.02,0.00038027,11]
[424137780,1780607493000,-500.0,0.00038027,11]
[424137782,1780607493000,-2564.12,0.00038027,11]
[424137786,1780607493000,-500.0,0.00038027,11]
[424137781,1780607493000,-3298.28,0.00038027,11]
[424137787,1780607493000,-500.0,0.00038027,11]
[424137788,1780607493000,-3061.44,0.00038027,11]
[424137768,1780607493000,-500.0,0.00038027,11]
[424137822,1780607493000,-3546.02,0.00038027,11]
[424137757,1780607493000,-500.0,0.00038027,11]
[424137817,1780607493000,-500.0,0.00038027,11]
[424137854,1780607493000,-500.0,0.00038027,11]
[424137855,1780607493000,-500.0,0.00038027,11]
[424137862,1780607493000,-2411.26,0.00038027,11]
[424137858,1780607493000,-500.0,0.00038027,11]
[424137856,1780607493000,-4647.15,0.00038027,11]
[424137863,1780607493000,-500.0,0.00038027,11]
[424137859,1780607493000,-500.0,0.00038027,11]
[424137857,1780607493000,-2831.2,0.00038027,11]
[424137865,1780607493000,-523.05,0.00038027,11]
[424137866,1780607493000,-500.0,0.00038027,11]
[424137861,1780607493000,-500.0,0.00038027,11]
[424137860,1780607493000,-5779.59,0.00038027,11]
[424137864,1780607493000,-4510.34,0.00038027,11]
[424137850,1780607493000,-500.0,0.00038027,11]
[424137868,1780607493000,-1171.82,0.00038027,11]
[424137879,1780607493000,-561.85,0.00038027,11]
[424137875,1780607493000,-500.0,0.00038027,11]
[424137872,1780607493000,-238.39053894,0.00038027,11]
[424137870,1780607493000,-500.0,0.00038027,11]
[424137867,1780607493000,-4348.87,0.00038027,11]
[424137869,1780607493000,-3112.66,0.00038027,11]
[424137877,1780607493000,-500.0,0.00038027,11]
[424137876,1780607493000,-500.0,0.00038027,11]
[424137873,1780607493000,-15890.34,0.00038027,11]
[424137874,1780607493000,-500.0,0.00038027,11]
[424137881,1780607493000,-583.89290251,0.00038027,11]
[424137880,1780607493000,-4798.39,0.00038027,11]
[424137821,1780607493000,-665.08,0.00038027,11]
[424137878,1780607493000,-500.0,0.00038027,11]
[424137847,1780607493000,-12422.13,0.00038027,11]
[424137871,1780607493000,-595.3,0.00038027,11]
[424137846,1780607493000,-500.0,0.00038027,11]
[424137851,1780607493000,-719.33,0.00038027,7]
[424137818,1780607493000,-3563.89,0.00038027,11]
[424137815,1780607493000,-728.56,0.00038027,11]
[424137823,1780607493000,-3494.2,0.00038027,11]
[424137824,1780607493000,-3412.16,0.00038027,11]
[424137825,1780607493000,-3628.99,0.00038027,11]
[424137819,1780607493000,-531.93,0.00038027,11]
[424137829,1780607493000,-9837.19,0.00038027,11]
[424137830,1780607493000,-6206.91,0.00038027,11]
[424137828,1780607493000,-372.61132333,0.00038027,11]
[424137831,1780607493000,-500.0,0.00038027,11]
[424137832,1780607493000,-8627.97,0.00038027,11]
[424137834,1780607493000,-500.0,0.00038027,11]
[424137833,1780607493000,-500.0,0.00038027,11]
[424137820,1780607493000,-500.0,0.00038027,11]
[424137839,1780607493000,-6377.55,0.00038027,11]
[424137840,1780607493000,-500.0,0.00038027,11]
[424137843,1780607493000,-500.0,0.00038027,11]
[424137841,1780607493000,-533.68,0.00038027,11]
[424137844,1780607493000,-4154.75,0.00038027,11]
[424137845,1780607493000,-500.0,0.00038027,11]
[424137852,1780607493000,-500.0,0.00038027,11]
[424137849,1780607493000,-953.86,0.00038027,10]
[424137842,1780607493000,-3104.62,0.00038027,11]
[424137835,1780607493000,-500.0,0.00038027,11]
[424137853,1780607493000,-3101.67,0.00038027,11]
[424137837,1780607493000,-397.29922135,0.00038027,11]
[424137848,1780607493000,-500.0,0.00038027,11]
[424137836,1780607493000,-2900.38,0.00038027,11]
[424137838,1780607493000,-718.88,0.00038027,11]
[424137920,1780607494000,-2829.34,0.00038027,11]
[424137909,1780607494000,-500.0,0.00038027,11]
[424137919,1780607494000,-3178.87,0.00038027,11]
[424137915,1780607494000,-4507.58,0.00038027,11]
[424137916,1780607494000,-500.0,0.00038027,11]
[424137912,1780607494000,-500.0,0.00038027,11]
[424137910,1780607494000,-1136.83,0.00038027,11]
[424137913,1780607494000,-3790.95,0.00038027,11]
[424137921,1780607494000,-558.09,0.00038027,11]
[424137931,1780607494000,-500.0,0.00038027,11]
[424137914,1780607494000,-4107.63,0.00038027,11]
[424137911,1780607494000,-4650.59,0.00038027,11]
[424137923,1780607494000,-2024.03,0.00038027,11]
[424137933,1780607494000,-500.0,0.00038027,11]
[424137932,1780607494000,-6469.94,0.00038027,11]
[424137925,1780607494000,-601.14,0.00038027,11]
[424137928,1780607494000,-500.0,0.00038027,11]
[424137927,1780607494000,-633.72,0.00038027,11]
[424137929,1780607494000,-8451.65,0.00038027,11]
[424137924,1780607494000,-500.0,0.00038027,11]
[424137922,1780607494000,-500.0,0.00038027,11]
[424137930,1780607494000,-500.0,0.00038027,11]
[424137917,1780607494000,-500.0,0.00038027,11]
[424137936,1780607494000,-2685.34,0.00038027,11]
[424137926,1780607494000,-500.0,0.00038027,11]
[424137918,1780607494000,-470.82622095,0.00038027,11]
[424137904,1780607494000,-3032.7,0.00038027,11]
[424137906,1780607494000,-6996.9,0.00038027,11]
[424137937,1780607494000,-2401.0,0.00038027,11]
[424137888,1780607494000,-506.61965726,0.00038027,11]
[424137892,1780607494000,-9643.11,0.00038027,11]
[424137885,1780607494000,-3576.54,0.00038027,11]
[424137883,1780607494000,-500.0,0.00038027,11]
[424137884,1780607494000,-4334.54,0.00038027,11]
[424137890,1780607494000,-500.0,0.00038027,11]
[424137891,1780607494000,-4311.22,0.00038027,11]
[424137882,1780607494000,-3339.36,0.00038027,11]
[424137886,1780607494000,-500.0,0.00038027,11]
[424137887,1780607494000,-500.0,0.00038027,11]
[424137889,1780607494000,-500.0,0.00038027,11]
[424137894,1780607494000,-500.0,0.00038027,11]
[424137893,1780607494000,-500.0,0.00038027,11]
[424137897,1780607494000,-3337.69,0.00038027,11]
[424137895,1780607494000,-2873.09,0.00038027,11]
[424137896,1780607494000,-500.0,0.00038027,11]
[424137905,1780607494000,-500.0,0.00038027,11]
[424137898,1780607494000,-3336.46,0.00038027,11]
[424137899,1780607494000,-524.18,0.00038027,11]
[424137903,1780607494000,-500.0,0.00038027,11]
[424137900,1780607494000,-500.0,0.00038027,11]
[424137901,1780607494000,-3359.97,0.00038027,11]
[424137902,1780607494000,-702.74,0.00038027,11]
[424137907,1780607494000,-3111.92,0.00038027,11]
[424137908,1780607494000,-571.38,0.00038027,11]
[424137935,1780607494000,-6296.36,0.00038027,11]
[424137940,1780607494000,-500.0,0.00038027,11]
[424137939,1780607494000,-3072.94,0.00038027,11]
[424137970,1780607494000,-543.36,0.00038027,11]
[424137974,1780607494000,-3491.63,0.00038027,11]
[424137962,1780607494000,-500.0,0.00038027,11]
[424137972,1780607494000,-4400.8,0.00038027,11]
[424137971,1780607494000,-4600.9,0.00038027,11]
[424137973,1780607494000,-2173.31,0.00038027,11]
[424137975,1780607494000,-648.06,0.00038027,11]
[424137976,1780607494000,-5178.13,0.00038027,11]
[424137978,1780607494000,-383.44460559,0.00038027,11]
[424137981,1780607494000,-4490.65,0.00038027,11]
[424137979,1780607494000,-500.0,0.00038027,11]
[424137980,1780607494000,-4252.57,0.00038027,11]
[424137983,1780607494000,-513.38,0.00038027,11]
[424137992,1780607494000,-500.0,0.00038027,11]
[424137982,1780607494000,-500.0,0.00038027,11]
[424137989,1780607494000,-4440.1,0.00038027,11]
[424137985,1780607494000,-500.0,0.00038027,11]
[424137988,1780607494000,-15648.77,0.00038027,11]
[424137987,1780607494000,-500.0,0.00038027,11]
[424137984,1780607494000,-500.0,0.00038027,11]
[424137986,1780607494000,-500.0,0.00038027,11]
[424137991,1780607494000,-2997.46,0.00038027,11]
[424137990,1780607494000,-500.0,0.00038027,11]
[424137993,1780607494000,-500.0,0.00038027,11]
[424137941,1780607494000,-11634.89,0.00038027,11]
[424137969,1780607494000,-4425.91,0.00038027,11]
[424137966,1780607494000,-631.71,0.00038027,11]
[424137977,1780607494000,-3896.22,0.00038027,11]
[424137967,1780607494000,-5259.59,0.00038027,11]
[424137968,1780607494000,-509.05105614,0.00038027,11]
[424137938,1780607494000,-500.0,0.00038027,11]
[424137942,1780607494000,-500.0,0.00038027,11]
[424137945,1780607494000,-532.42536476,0.00038027,11]
[424137944,1780607494000,-12334.13,0.00038027,11]
[424137943,1780607494000,-3048.3,0.00038027,11]
[424137946,1780607494000,-2357.35,0.00038027,11]
[424137947,1780607494000,-500.0,0.00038027,11]
[424137960,1780607494000,-231.55510324,0.00038027,11]
[424137953,1780607494000,-500.0,0.00038027,11]
[424137950,1780607494000,-520.25181531,0.00038027,11]
[424137959,1780607494000,-500.0,0.00038027,11]
[424137958,1780607494000,-4751.19,0.00038027,11]
[424137934,1780607494000,-757.35,0.00038027,11]
[424137948,1780607494000,-518.51,0.00038027,11]
[424137951,1780607494000,-667.01,0.00038027,11]
[424137965,1780607494000,-7429.85,0.00038027,11]
[424137964,1780607494000,-500.0,0.00038027,11]
[424137961,1780607494000,-3857.65,0.00038027,11]
[424137957,1780607494000,-1942.96,0.00038027,11]
[424137963,1780607494000,-500.0,0.00038027,11]
[424137956,1780607494000,-4545.69,0.00038027,11]
[424137955,1780607494000,-500.0,0.00038027,11]
[424137952,1780607494000,-500.0,0.00038027,11]
[424137949,1780607494000,-469.335669,0.00038027,11]
[424137954,1780607494000,-4887.15,0.00038027,11]
[424138033,1780607495000,-500.0,0.00038082,11]
[424138035,1780607495000,-611.92,0.00038082,11]
[424138031,1780607495000,-500.0,0.00038082,11]
[424138024,1780607495000,-500.0,0.00038082,11]
[424138032,1780607495000,-933.84,0.00038082,11]
[424138026,1780607495000,-500.0,0.00038082,11]
[424138028,1780607495000,-527.04,0.00038082,11]
[424138027,1780607495000,-621.31,0.00038082,11]
[424138025,1780607495000,-500.0,0.00038082,11]
[424138030,1780607495000,-387.81480408,0.00038082,11]
[424138029,1780607495000,-569.06,0.00038082,11]
[424138047,1780607495000,-500.0,0.00038082,11]
[424138043,1780607495000,-760.89,0.00038082,11]
[424138036,1780607495000,-500.0,0.00038082,11]
[424138039,1780607495000,-500.0,0.00038082,11]
[424138038,1780607495000,-858.66,0.00038082,11]
[424138037,1780607495000,-500.0,0.00038082,11]
[424138042,1780607495000,-500.0,0.00038082,11]
[424138040,1780607495000,-919.67,0.00038082,11]
[424138041,1780607495000,-500.0,0.00038082,11]
[424138044,1780607495000,-676.23,0.00038082,11]
[424138045,1780607495000,-500.0,0.00038082,11]
[424138046,1780607495000,-500.0,0.00038082,11]
[424138022,1780607495000,-519.43,0.00038082,11]
[424138034,1780607495000,-500.0,0.00038082,11]
[424138021,1780607495000,-646.98031938,0.00038082,11]
[424137994,1780607495000,-500.0,0.00038027,11]
[424138020,1780607495000,-500.0,0.00038082,11]
[424137995,1780607495000,-500.0,0.00038027,11]
[424137996,1780607495000,-3145.9,0.00038027,11]
[424137999,1780607495000,-2827.17,0.00038027,11]
[424137997,1780607495000,-1243.01,0.00038027,11]
[424138000,1780607495000,-500.0,0.00038027,11]
[424137998,1780607495000,-4028.7,0.00038027,11]
[424138001,1780607495000,-5211.17,0.00038027,11]
[424138002,1780607495000,-1666.07,0.00038027,11]
[424138011,1780607495000,-520.25181531,0.00038082,11]
[424138004,1780607495000,-3001.73,0.00038027,11]
[424138013,1780607495000,-900.0,0.00038082,60]
[424138007,1780607495000,-300.0,0.00038067,48]
[424138012,1780607495000,-509.05105614,0.00038082,11]
[424138003,1780607495000,-500.0,0.00038027,11]
[424138005,1780607495000,-262.2925949,0.00038036,2]
[424138006,1780607495000,-504.0,0.00038054,13]
[424138010,1780607495000,-630.74710949,0.00038081,11]
[424138009,1780607495000,-1000.0,0.0003807,2]
[424138008,1780607495000,-500.0,0.0003807,2]
[424138016,1780607495000,-500.0,0.00038082,11]
[424138014,1780607495000,-500.0,0.00038082,11]
[424138015,1780607495000,-500.0,0.00038082,11]
[424138017,1780607495000,-500.0,0.00038082,60]
[424138018,1780607495000,-500.0,0.00038082,60]
[424138019,1780607495000,-500.0,0.00038082,11]
[424138023,1780607495000,-500.0,0.00038082,11]
[424138048,1780607495000,-500.0,0.00038082,11]
[424138068,1780607495000,-1168.37,0.00038082,2]
[424138050,1780607495000,-500.0,0.00038082,11]
[424138080,1780607495000,-716.65,0.00038082,11]
[424138079,1780607495000,-500.0,0.00038082,11]
[424138084,1780607495000,-500.0,0.00038082,11]
[424138083,1780607495000,-500.0,0.00038082,11]
[424138087,1780607495000,-506.64,0.00038082,11]
[424138093,1780607495000,-500.0,0.00038082,11]
[424138091,1780607495000,-1480.09,0.00038082,2]
[424138090,1780607495000,-500.0,0.00038082,11]
[424138092,1780607495000,-500.0,0.00038082,11]
[424138094,1780607495000,-573.72,0.00038082,11]
[424138085,1780607495000,-642.11,0.00038082,11]
[424138086,1780607495000,-500.0,0.00038082,11]
[424138089,1780607495000,-348.61330566,0.00038082,11]
[424138096,1780607495000,-620.97,0.00038082,11]
[424138097,1780607495000,-3897.01,0.00038082,11]
[424138095,1780607495000,-835.7,0.00038082,2]
[424138098,1780607495000,-500.0,0.00038082,11]
[424138099,1780607495000,-500.0,0.00038082,11]
[424138102,1780607495000,-500.0,0.00038082,2]
[424138103,1780607495000,-959.73,0.00038082,11]
[424138101,1780607495000,-526.23,0.00038082,11]
[424138100,1780607495000,-500.0,0.00038082,11]
[424138104,1780607495000,-622.52,0.00038082,11]
[424138105,1780607495000,-500.0,0.00038082,11]
[424138052,1780607495000,-500.0,0.00038082,11]
[424138076,1780607495000,-500.0,0.00038082,11]
[424138078,1780607495000,-545.45,0.00038082,11]
[424138088,1780607495000,-500.0,0.00038082,11]
[424138077,1780607495000,-500.0,0.00038082,11]
[424138075,1780607495000,-503.93,0.00038082,11]
[424138049,1780607495000,-500.0,0.00038082,11]
[424138051,1780607495000,-601.68,0.00038082,11]
[424138053,1780607495000,-590.93998084,0.00038082,11]
[424138054,1780607495000,-650.34,0.00038082,11]
[424138055,1780607495000,-500.0,0.00038082,11]
[424138056,1780607495000,-500.0,0.00038082,11]
[424138057,1780607495000,-500.0,0.00038082,11]
[424138059,1780607495000,-500.0,0.00038082,11]
[424138061,1780607495000,-655.5,0.00038082,11]
[424138060,1780607495000,-654.49,0.00038082,11]
[424138067,1780607495000,-500.0,0.00038082,11]
[424138066,1780607495000,-500.0,0.00038082,11]
[424138058,1780607495000,-704.67,0.00038082,11]
[424138074,1780607495000,-576.13,0.00038082,11]
[424138065,1780607495000,-500.0,0.00038082,11]
[424138072,1780607495000,-500.0,0.00038082,11]
[424138073,1780607495000,-500.0,0.00038082,11]
[424138081,1780607495000,-587.58,0.00038082,11]
[424138071,1780607495000,-813.06,0.00038082,11]
[424138082,1780607495000,-500.0,0.00038082,11]
[424138069,1780607495000,-500.0,0.00038082,11]
[424138062,1780607495000,-500.0,0.00038082,11]
[424138063,1780607495000,-516.33323807,0.00038082,11]
[424138064,1780607495000,-500.0,0.00038082,11]
[424138070,1780607495000,-500.0,0.00038082,11]
[424138151,1780607496000,-500.0,0.00038082,11]
[424138154,1780607496000,-601.28,0.00038082,11]
[424138143,1780607496000,-4090.61,0.00038082,11]
[424138152,1780607496000,-500.0,0.00038082,11]
[424138144,1780607496000,-1430.55,0.00038082,11]
[424138136,1780607496000,-2618.0,0.00038082,11]
[424138138,1780607496000,-500.0,0.00038082,11]
[424138140,1780607496000,-776.69,0.00038082,11]
[424138134,1780607496000,-500.0,0.00038082,11]
[424138139,1780607496000,-578.2,0.00038082,11]
[424138153,1780607496000,-500.0,0.00038082,11]
[424138142,1780607496000,-500.0,0.00038082,11]
[424138145,1780607496000,-500.0,0.00038082,11]
[424138161,1780607496000,-500.0,0.00038082,11]
[424138146,1780607496000,-500.0,0.00038082,11]
[424138148,1780607496000,-786.81,0.00038082,11]
[424138150,1780607496000,-500.0,0.00038082,11]
[424138149,1780607496000,-500.0,0.00038082,11]
[424138157,1780607496000,-500.0,0.00038082,11]
[424138164,1780607496000,-500.0,0.00038082,11]
[424138158,1780607496000,-500.0,0.00038082,11]
[424138156,1780607496000,-500.0,0.00038082,11]
[424138167,1780607496000,-3642.31,0.00038082,11]
[424138166,1780607496000,-500.0,0.00038082,11]
[424138159,1780607496000,-790.25,0.00038082,11]
[424138133,1780607496000,-500.0,0.00038082,11]
[424138147,1780607496000,-2807.22,0.00038082,11]
[424138141,1780607496000,-500.0,0.00038082,11]
[424138107,1780607496000,-500.0,0.00038082,11]
[424138135,1780607496000,-3768.72,0.00038082,11]
[424138106,1780607496000,-500.0,0.00038082,11]
[424138162,1780607496000,-639.59,0.00038082,11]
[424138108,1780607496000,-2135.96,0.00038082,11]
[424138116,1780607496000,-743.9,0.00038082,3]
[424138112,1780607496000,-659.75,0.00038082,11]
[424138113,1780607496000,-500.0,0.00038082,11]
[424138118,1780607496000,-4753.62,0.00038082,11]
[424138110,1780607496000,-500.0,0.00038082,11]
[424138109,1780607496000,-731.99,0.00038082,11]
[424138111,1780607496000,-196.76436765,0.00038082,11]
[424138117,1780607496000,-500.0,0.00038082,11]
[424138114,1780607496000,-500.0,0.00038082,11]
[424138115,1780607496000,-500.0,0.00038082,11]
[424138120,1780607496000,-1339.82,0.00038082,11]
[424138130,1780607496000,-812.19,0.00038082,11]
[424138131,1780607496000,-263.30764861,0.00038082,11]
[424138119,1780607496000,-500.0,0.00038082,11]
[424138123,1780607496000,-500.0,0.00038082,11]
[424138121,1780607496000,-500.0,0.00038082,11]
[424138122,1780607496000,-500.0,0.00038082,11]
[424138124,1780607496000,-4153.69,0.00038082,11]
[424138127,1780607496000,-270.01356828,0.00038082,11]
[424138125,1780607496000,-2524.42,0.00038082,11]
[424138126,1780607496000,-500.0,0.00038082,11]
[424138129,1780607496000,-500.0,0.00038082,11]
[424138128,1780607496000,-623.71,0.00038082,11]
[424138132,1780607496000,-500.0,0.00038082,11]
[424138137,1780607496000,-800.05,0.00038082,11]
[424138165,1780607496000,-500.0,0.00038082,11]
[424138155,1780607496000,-1955.75,0.00038082,11]
[424138163,1780607496000,-500.0,0.00038082,11]
[424138194,1780607496000,-537.21,0.00038082,11]
[424138203,1780607496000,-500.0,0.00038082,11]
[424138197,1780607496000,-500.0,0.00038082,11]
[424138198,1780607496000,-500.0,0.00038082,11]
[424138195,1780607496000,-519.35,0.00038082,11]
[424138204,1780607496000,-685.93,0.00038082,11]
[424138209,1780607496000,-2656.95,0.00038082,11]
[424138206,1780607496000,-500.0,0.00038082,11]
[424138211,1780607496000,-500.0,0.00038082,11]
[424138210,1780607496000,-3429.27,0.00038082,11]
[424138205,1780607496000,-500.0,0.00038082,11]
[424138208,1780607496000,-500.0,0.00038082,11]
[424138214,1780607496000,-500.0,0.00038082,11]
[424138201,1780607496000,-500.0,0.00038082,11]
[424138213,1780607496000,-597.61,0.00038082,11]
[424138216,1780607496000,-500.0,0.00038082,11]
[424138215,1780607496000,-500.0,0.00038082,11]
[424138217,1780607496000,-500.0,0.00038082,11]
[424138219,1780607496000,-3144.39,0.00038082,11]
[424138221,1780607496000,-500.0,0.00038082,11]
[424138218,1780607496000,-500.0,0.00038082,11]
[424138220,1780607496000,-500.0,0.00038082,11]
[424138222,1780607496000,-790.85,0.00038082,11]
[424138225,1780607496000,-500.0,0.00038082,11]
[424138223,1780607496000,-606.24,0.00038082,11]
[424138226,1780607496000,-500.0,0.00038082,11]
[424138224,1780607496000,-500.0,0.00038082,11]
[424138160,1780607496000,-2658.89,0.00038082,11]
[424138212,1780607496000,-543.2,0.00038082,11]
[424138202,1780607496000,-2916.9,0.00038082,11]
[424138207,1780607496000,-500.0,0.00038082,11]
[424138199,1780607496000,-500.0,0.00038082,11]
[424138192,1780607496000,-500.0,0.00038082,11]
[424138175,1780607496000,-678.09,0.00038082,11]
[424138178,1780607496000,-3910.95,0.00038082,11]
[424138176,1780607496000,-2550.57,0.00038082,11]
[424138179,1780607496000,-500.0,0.00038082,11]
[424138169,1780607496000,-267.89445367,0.00038082,11]
[424138174,1780607496000,-500.0,0.00038082,11]
[424138173,1780607496000,-500.0,0.00038082,11]
[424138170,1780607496000,-500.0,0.00038082,11]
[424138171,1780607496000,-2929.97,0.00038082,11]
[424138172,1780607496000,-500.0,0.00038082,11]
[424138168,1780607496000,-610.07,0.00038082,11]
[424138183,1780607496000,-500.0,0.00038082,11]
[424138182,1780607496000,-550.29,0.00038082,11]